[Event "Titled Tuesday Blitz November 01 Early 2022"]
[White "Pakleza, Zbigniew"]
[Black "Salem, A.R. Saleh"]
[WhiteFideId "1119290"]
[BlackFideId "9301348"]
[WhiteElo "2411"]
[BlackElo "2628"]
[Result "0-1"]
[Round "08"]
[TimeControl "180+1"]
[Date "2022.11.01"]
[WhiteClock "0:00:09"]
[BlackClock "0:00:58"]

1. d4 {[%clk 0:03:00]}  Nf6 {[%clk 0:03:00]} 2. Nf3 {[%clk 0:03:01]}  e6 {[%clk 0:03:00]} 3. Bf4 {[%clk 0:03:01]}  c5 {[%clk 0:02:57]} 4. c3 {[%clk 0:03:00]}  Nc6 {[%clk 0:02:58]} 5. e3 {[%clk 0:03:01]}  b6 {[%clk 0:02:58]} 6. Nbd2 {[%clk 0:03:01]}  cxd4 {[%clk 0:02:53]} 7. cxd4 {[%clk 0:03:00]}  Bb7 {[%clk 0:02:52]} 8. h3 {[%clk 0:02:59]}  Be7 {[%clk 0:02:52]} 9. a3 {[%clk 0:02:58]}  Rc8 {[%clk 0:02:44]} 10. Bd3 {[%clk 0:02:57]}  h6 {[%clk 0:02:42]} 11. Qe2 {[%clk 0:02:53]}  O-O {[%clk 0:02:32]} 12. O-O {[%clk 0:02:53]}  d6 {[%clk 0:02:24]} 13. e4 {[%clk 0:02:47]}  Nd7 {[%clk 0:02:15]} 14. Bg3 {[%clk 0:02:29]}  e5 {[%clk 0:02:01]} 15. d5 {[%clk 0:02:30]}  Ncb8 {[%clk 0:02:00]} 16. b4 {[%clk 0:02:24]}  g6 {[%clk 0:01:58]} 17. Ne1 {[%clk 0:01:44]}  Nf6 {[%clk 0:01:56]} 18. Bh2 {[%clk 0:01:38]}  Rc3 {[%clk 0:01:54]} 19. g4 {[%clk 0:01:33]}  Nh7 {[%clk 0:01:53]} 20. Nef3 {[%clk 0:01:23]}  Qd7 {[%clk 0:01:41]} 21. Rfc1 {[%clk 0:01:11]}  Rfc8 {[%clk 0:01:41]} 22. Rxc3 {[%clk 0:01:00]}  Rxc3 {[%clk 0:01:42]} 23. Bg3 {[%clk 0:00:42]}  Bc8 {[%clk 0:01:41]} 24. Qf1 {[%clk 0:00:33]}  Qc7 {[%clk 0:01:36]} 25. Nc4 {[%clk 0:00:29]}  Ng5 {[%clk 0:01:17]} 26. Nxg5 {[%clk 0:00:26]}  Bxg5 {[%clk 0:01:17]} 27. f3 {[%clk 0:00:22]}  Ba6 {[%clk 0:01:05]} 28. Nxe5 {[%clk 0:00:14]}  dxe5 {[%clk 0:01:06]} 29. Bxa6 {[%clk 0:00:14]}  Nxa6 {[%clk 0:01:07]} 30. Qxa6 {[%clk 0:00:15]}  Rxf3 {[%clk 0:01:08]} 31. Kg2 {[%clk 0:00:14]}  Rxg3+ {[%clk 0:01:03]} 32. Kxg3 {[%clk 0:00:13]}  Qc3+ {[%clk 0:01:04]} 33. Kg2 {[%clk 0:00:13]}  Qb2+ {[%clk 0:01:03]} 34. Kf3 {[%clk 0:00:12]}  Qxa1 {[%clk 0:01:02]} 35. Qxa7 {[%clk 0:00:09]}  Qf1+ {[%clk 0:01:01]} 36. Kg3 {[%clk 0:00:09]}  Bf4+ {[%clk 0:00:58]} 37. Kh4 {[%clk 0:00:09]}  Qf2# {[%clk 0:00:58]} 0-1


[Site "https://www.chess.com"]

[Event "Titled Tuesday Blitz November 01 Early 2022"]
[White "Palacio,Igor Da Paz"]
[Black "Jarocka, Liwia"]
[WhiteFideId "2121140"]
[BlackFideId "21807558"]
[WhiteElo "2126"]
[BlackElo "1989"]
[Result "0-1"]
[Round "08"]
[TimeControl "180+1"]
[Date "2022.11.02"]
[WhiteClock "0:00:01"]
[BlackClock "0:00:34"]

1. e4 {[%clk 0:03:00]}  e6 {[%clk 0:02:58]} 2. d3 {[%clk 0:03:00]}  d5 {[%clk 0:02:57]} 3. Nd2 {[%clk 0:03:01]}  c5 {[%clk 0:02:56]} 4. Ngf3 {[%clk 0:03:01]}  Nc6 {[%clk 0:02:56]} 5. g3 {[%clk 0:03:01]}  Nf6 {[%clk 0:02:54]} 6. Bg2 {[%clk 0:03:01]}  Be7 {[%clk 0:02:52]} 7. O-O {[%clk 0:03:01]}  b6 {[%clk 0:02:51]} 8. Re1 {[%clk 0:03:01]}  Bb7 {[%clk 0:02:50]} 9. a3 {[%clk 0:02:55]}  O-O {[%clk 0:02:47]} 10. e5 {[%clk 0:02:37]}  Nd7 {[%clk 0:02:46]} 11. h4 {[%clk 0:02:34]}  h6 {[%clk 0:02:38]} 12. h5 {[%clk 0:02:28]}  Qc7 {[%clk 0:02:36]} 13. Qe2 {[%clk 0:02:27]}  d4 {[%clk 0:02:31]} 14. a4 {[%clk 0:02:22]}  Rfe8 {[%clk 0:02:30]} 15. Nc4 {[%clk 0:02:21]}  a6 {[%clk 0:02:26]} 16. Bf4 {[%clk 0:02:20]}  b5 {[%clk 0:02:17]} 17. Na3 {[%clk 0:02:20]}  Na7 {[%clk 0:02:00]} 18. Qd2 {[%clk 0:02:04]}  Rac8 {[%clk 0:01:59]} 19. axb5 {[%clk 0:01:46]}  Nxb5 {[%clk 0:01:54]} 20. Nxb5 {[%clk 0:01:46]}  axb5 {[%clk 0:01:55]} 21. Ra5 {[%clk 0:01:34]}  Qb6 {[%clk 0:01:45]} 22. Rea1 {[%clk 0:01:00]}  Bf8 {[%clk 0:01:42]} 23. Ra7 {[%clk 0:00:59]}  Ra8 {[%clk 0:01:35]} 24. Rxa8 {[%clk 0:00:55]}  Rxa8 {[%clk 0:01:35]} 25. Rxa8 {[%clk 0:00:51]}  Bxa8 {[%clk 0:01:36]} 26. Qe1 {[%clk 0:00:46]}  c4 {[%clk 0:01:34]} 27. Nd2 {[%clk 0:00:38]}  Bxg2 {[%clk 0:01:32]} 28. Kxg2 {[%clk 0:00:39]}  Bb4 {[%clk 0:01:28]} 29. Qe4 {[%clk 0:00:33]}  Bxd2 {[%clk 0:01:26]} 30. Bxd2 {[%clk 0:00:33]}  cxd3 {[%clk 0:01:21]} 31. cxd3 {[%clk 0:00:29]}  Qb8 {[%clk 0:01:04]} 32. Bb4 {[%clk 0:00:28]}  Qxe5 {[%clk 0:01:00]} 33. Qxe5 {[%clk 0:00:10]}  Nxe5 {[%clk 0:00:55]} 34. Bc5 {[%clk 0:00:11]}  Nxd3 {[%clk 0:00:55]} 35. Bxd4 {[%clk 0:00:11]}  e5 {[%clk 0:00:55]} 36. Bc3 {[%clk 0:00:06]}  b4 {[%clk 0:00:53]} 37. Bd2 {[%clk 0:00:06]}  f6 {[%clk 0:00:49]} 38. Kf3 {[%clk 0:00:04]}  Nxb2 {[%clk 0:00:46]} 39. Bxb4 {[%clk 0:00:04]}  Nd3 {[%clk 0:00:45]} 40. Bd2 {[%clk 0:00:02]}  Nc5 {[%clk 0:00:44]} 41. Be3 {[%clk 0:00:01]}  Ne6 {[%clk 0:00:44]} 42. Kg2 {[%clk 0:00:02]}  Kf7 {[%clk 0:00:45]} 43. Kh3 {[%clk 0:00:02]}  f5 {[%clk 0:00:45]} 44. Bd2 {[%clk 0:00:01]}  Kf6 {[%clk 0:00:46]} 45. Kh4 {[%clk 0:00:01]}  g5+ {[%clk 0:00:44]} 46. hxg6 {[%clk 0:00:01]}  Kxg6 {[%clk 0:00:44]} 47. Kh3 {[%clk 0:00:02]}  Ng5+ {[%clk 0:00:44]} 48. Kg2 {[%clk 0:00:02]}  Ne4 {[%clk 0:00:44]} 49. Be3 {[%clk 0:00:03]}  h5 {[%clk 0:00:42]} 50. Kf3 {[%clk 0:00:03]}  Nf6 {[%clk 0:00:42]} 51. Ba7 {[%clk 0:00:03]}  Nd5 {[%clk 0:00:41]} 52. Bb8 {[%clk 0:00:02]}  e4+ {[%clk 0:00:40]} 53. Kg2 {[%clk 0:00:02]}  Kg5 {[%clk 0:00:40]} 54. Bd6 {[%clk 0:00:01]}  Kg4 {[%clk 0:00:40]} 55. Bb8 {[%clk 0:00:01]}  Nb4 {[%clk 0:00:34]} 0-1


[Site "https://www.chess.com"]

[Event "Titled Tuesday Blitz November 01 Early 2022"]
[White "Pap, Gyula"]
[Black "Adnan, Habib"]
[WhiteFideId "725323"]
[BlackFideId "11202270"]
[WhiteElo "2519"]
[BlackElo "2110"]
[Result "1-0"]
[Round "08"]
[TimeControl "180+1"]
[Date "2022.11.02"]
[WhiteClock "0:01:29"]
[BlackClock "0:00:01"]

1. d4 {[%clk 0:02:57]}  Nf6 {[%clk 0:02:59]} 2. c4 {[%clk 0:02:57]}  g6 {[%clk 0:03:00]} 3. Nc3 {[%clk 0:02:56]}  Bg7 {[%clk 0:03:00]} 4. e4 {[%clk 0:02:57]}  d6 {[%clk 0:03:00]} 5. Be2 {[%clk 0:02:57]}  O-O {[%clk 0:03:00]} 6. Bg5 {[%clk 0:02:58]}  c5 {[%clk 0:02:59]} 7. d5 {[%clk 0:02:57]}  b5 {[%clk 0:02:57]} 8. cxb5 {[%clk 0:02:54]}  a6 {[%clk 0:02:57]} 9. a4 {[%clk 0:02:47]}  axb5 {[%clk 0:02:53]} 10. axb5 {[%clk 0:02:46]}  Rxa1 {[%clk 0:02:24]} 11. Qxa1 {[%clk 0:02:47]}  Nbd7 {[%clk 0:02:22]} 12. Nf3 {[%clk 0:02:46]}  Qb6 {[%clk 0:02:14]} 13. O-O {[%clk 0:02:39]}  Bb7 {[%clk 0:02:13]} 14. Nd2 {[%clk 0:02:34]}  Ra8 {[%clk 0:02:04]} 15. Qb1 {[%clk 0:02:35]}  Ne5 {[%clk 0:01:49]} 16. h3 {[%clk 0:02:34]}  h6 {[%clk 0:01:43]} 17. Be3 {[%clk 0:02:34]}  Qc7 {[%clk 0:01:17]} 18. Qc2 {[%clk 0:02:27]}  e6 {[%clk 0:01:07]} 19. dxe6 {[%clk 0:02:24]}  fxe6 {[%clk 0:01:07]} 20. Ncb1 {[%clk 0:01:48]}  Ned7 {[%clk 0:00:44]} 21. b4 {[%clk 0:01:43]}  Rc8 {[%clk 0:00:17]} 22. Rc1 {[%clk 0:01:36]}  Ba8 {[%clk 0:00:16]} 23. bxc5 {[%clk 0:01:34]}  Nxc5 {[%clk 0:00:16]} 24. e5 {[%clk 0:01:34]}  Qb7 {[%clk 0:00:14]} 25. Bf3 {[%clk 0:01:34]}  Nd5 {[%clk 0:00:13]} 26. exd6 {[%clk 0:01:32]}  Nxe3 {[%clk 0:00:10]} 27. Bxb7 {[%clk 0:01:31]}  Nxc2 {[%clk 0:00:09]} 28. Bxc8 {[%clk 0:01:32]}  Bb7 {[%clk 0:00:03]} 29. Bxb7 {[%clk 0:01:31]}  Nxb7 {[%clk 0:00:02]} 30. Rxc2 {[%clk 0:01:30]}  Nxd6 {[%clk 0:00:03]} 31. b6 {[%clk 0:01:31]}  Bd4 {[%clk 0:00:02]} 32. Rc6 {[%clk 0:01:30]}  Ne8 {[%clk 0:00:01]} 33. Nf3 {[%clk 0:01:29]} 1-0


[Site "https://www.chess.com"]

[Event "Titled Tuesday Blitz November 01 Early 2022"]
[White "Papasimakopoulos, Alexandros"]
[Black "Ibarra Jerez, Jose Carlos"]
[WhiteFideId "4244125"]
[BlackFideId "2226332"]
[WhiteElo "2809"]
[BlackElo "2946"]
[Result "1-0"]
[Round "08"]
[TimeControl "180+1"]
[Date "2022.11.01"]
[WhiteClock "0:01:10"]
[BlackClock "0:01:39"]

1. d4 {[%clk 0:02:51]}  Nf6 {[%clk 0:03:00]} 2. c4 {[%clk 0:02:48]}  d6 {[%clk 0:03:00]} 3. Nf3 {[%clk 0:02:48]}  g6 {[%clk 0:03:00]} 4. Nc3 {[%clk 0:02:48]}  Bf5 {[%clk 0:03:01]} 5. Nh4 {[%clk 0:02:47]}  Bd7 {[%clk 0:03:01]} 6. e4 {[%clk 0:02:48]}  e5 {[%clk 0:03:01]} 7. Nf3 {[%clk 0:02:48]}  exd4 {[%clk 0:03:01]} 8. Nxd4 {[%clk 0:02:48]}  Bg7 {[%clk 0:03:02]} 9. Be2 {[%clk 0:02:48]}  O-O {[%clk 0:03:02]} 10. O-O {[%clk 0:02:49]}  Re8 {[%clk 0:03:03]} 11. f3 {[%clk 0:02:49]}  Nc6 {[%clk 0:03:03]} 12. Nc2 {[%clk 0:02:32]}  Nh5 {[%clk 0:03:03]} 13. g4 {[%clk 0:02:32]}  Nf6 {[%clk 0:03:00]} 14. Bg5 {[%clk 0:02:27]}  h6 {[%clk 0:02:57]} 15. Bh4 {[%clk 0:02:27]}  Be6 {[%clk 0:02:50]} 16. Ne3 {[%clk 0:02:15]}  g5 {[%clk 0:02:46]} 17. Bg3 {[%clk 0:02:10]}  Nd7 {[%clk 0:02:47]} 18. Nf5 {[%clk 0:02:02]}  Bxf5 {[%clk 0:02:45]} 19. gxf5 {[%clk 0:02:02]}  Be5 {[%clk 0:02:41]} 20. Qd2 {[%clk 0:01:57]}  Nd4 {[%clk 0:02:39]} 21. Kh1 {[%clk 0:01:47]}  c6 {[%clk 0:02:34]} 22. f4 {[%clk 0:01:47]}  gxf4 {[%clk 0:02:34]} 23. Bxf4 {[%clk 0:01:48]}  Qh4 {[%clk 0:02:32]} 24. Rg1+ {[%clk 0:01:43]}  Kh7 {[%clk 0:02:32]} 25. Rg4 {[%clk 0:01:43]}  Qf2 {[%clk 0:02:20]} 26. Bxe5 {[%clk 0:01:34]}  dxe5 {[%clk 0:02:16]} 27. Rf1 {[%clk 0:01:32]}  Nf3 {[%clk 0:01:51]} 28. Qxh6+ {[%clk 0:01:20]}  Kxh6 {[%clk 0:01:50]} 29. Rxf2 {[%clk 0:01:20]}  Nd4 {[%clk 0:01:48]} 30. Rfg2 {[%clk 0:01:19]}  Kh5 {[%clk 0:01:39]} 31. Rg5+ {[%clk 0:01:10]}  Kh6 {[%clk 0:01:39]} 32. Rh5# {[%clk 0:01:10]} 1-0


[Site "https://www.chess.com"]

[Event "Titled Tuesday Blitz November 01 Early 2022"]
[White "Pinheiro, Iung Alicio de O."]
[Black "Cabezas Solano, David Alejandro"]
[WhiteFideId "2104350"]
[BlackFideId "6507522"]
[WhiteElo "2283"]
[BlackElo "2035"]
[Result "0-1"]
[Round "08"]
[TimeControl "180+1"]
[Date "2022.11.02"]
[WhiteClock "0:00:15"]
[BlackClock "0:00:07"]

1. e4 {[%clk 0:03:00]}  c5 {[%clk 0:02:59]} 2. Nf3 {[%clk 0:03:00]}  Nc6 {[%clk 0:02:58]} 3. c3 {[%clk 0:02:59]}  Nf6 {[%clk 0:02:57]} 4. e5 {[%clk 0:02:59]}  Nd5 {[%clk 0:02:57]} 5. d4 {[%clk 0:02:58]}  cxd4 {[%clk 0:02:56]} 6. Bc4 {[%clk 0:02:58]}  Nb6 {[%clk 0:02:48]} 7. Bb3 {[%clk 0:02:57]}  d5 {[%clk 0:02:45]} 8. exd6 {[%clk 0:02:57]}  Qxd6 {[%clk 0:02:44]} 9. Na3 {[%clk 0:02:57]}  a6 {[%clk 0:02:30]} 10. O-O {[%clk 0:02:49]}  Bg4 {[%clk 0:02:28]} 11. Bxf7+ {[%clk 0:02:46]}  Kd8 {[%clk 0:02:09]} 12. h3 {[%clk 0:02:41]}  Bxf3 {[%clk 0:02:02]} 13. Qxf3 {[%clk 0:02:38]}  Kc7 {[%clk 0:01:56]} 14. Bf4 {[%clk 0:02:27]}  e5 {[%clk 0:01:53]} 15. Bg3 {[%clk 0:02:26]}  Rd8 {[%clk 0:01:38]} 16. cxd4 {[%clk 0:02:17]}  Nxd4 {[%clk 0:01:35]} 17. Qe4 {[%clk 0:02:17]}  Nc6 {[%clk 0:01:28]} 18. Rac1 {[%clk 0:02:04]}  Kb8 {[%clk 0:01:27]} 19. Bb3 {[%clk 0:01:44]}  Be7 {[%clk 0:01:15]} 20. Nc4 {[%clk 0:01:19]}  Nxc4 {[%clk 0:01:13]} 21. Bxc4 {[%clk 0:01:19]}  Bf6 {[%clk 0:01:11]} 22. Bxa6 {[%clk 0:01:18]}  Qd4 {[%clk 0:01:05]} 23. Qe2 {[%clk 0:01:07]}  Qb6 {[%clk 0:00:56]} 24. Bc4 {[%clk 0:00:49]}  Rhe8 {[%clk 0:00:53]} 25. Rfd1 {[%clk 0:00:44]}  Nd4 {[%clk 0:00:49]} 26. Qe4 {[%clk 0:00:43]}  g6 {[%clk 0:00:41]} 27. Bd5 {[%clk 0:00:32]}  Nf5 {[%clk 0:00:35]} 28. Bh2 {[%clk 0:00:28]}  Nd6 {[%clk 0:00:24]} 29. Qf3 {[%clk 0:00:25]}  Bg7 {[%clk 0:00:21]} 30. Qb3 {[%clk 0:00:25]}  Qa6 {[%clk 0:00:15]} 31. Bf3 {[%clk 0:00:22]}  Nf5 {[%clk 0:00:12]} 32. Be4 {[%clk 0:00:17]}  Nd4 {[%clk 0:00:09]} 33. Rxd4 {[%clk 0:00:14]}  Rxd4 {[%clk 0:00:08]} 34. Bf3 {[%clk 0:00:13]}  Red8 {[%clk 0:00:06]} 35. Bg3 {[%clk 0:00:13]}  Ka7 {[%clk 0:00:04]} 36. Bg4 {[%clk 0:00:12]}  e4 {[%clk 0:00:03]} 37. Qf7 {[%clk 0:00:11]}  Bh8 {[%clk 0:00:02]} 38. Bf4 {[%clk 0:00:11]}  Rd3 {[%clk 0:00:02]} 39. Be3+ {[%clk 0:00:11]}  Bd4 {[%clk 0:00:02]} 40. Bxd4+ {[%clk 0:00:10]}  R3xd4 {[%clk 0:00:03]} 41. Qf4 {[%clk 0:00:10]}  Qb6 {[%clk 0:00:02]} 42. Qe3 {[%clk 0:00:10]}  Qxb2 {[%clk 0:00:02]} 43. Rf1 {[%clk 0:00:10]}  Qb6 {[%clk 0:00:03]} 44. Be2 {[%clk 0:00:10]}  Ra4 {[%clk 0:00:02]} 45. Bc4 {[%clk 0:00:09]}  Qxe3 {[%clk 0:00:02]} 46. fxe3 {[%clk 0:00:08]}  Rxc4 {[%clk 0:00:03]} 47. Rf7 {[%clk 0:00:09]}  Rc3 {[%clk 0:00:03]} 48. Rxh7 {[%clk 0:00:09]}  Rxe3 {[%clk 0:00:02]} 49. Rg7 {[%clk 0:00:10]}  Rd1+ {[%clk 0:00:02]} 50. Kh2 {[%clk 0:00:10]}  Ree1 {[%clk 0:00:03]} 51. Rxg6 {[%clk 0:00:10]}  e3 {[%clk 0:00:04]} 52. h4 {[%clk 0:00:11]}  e2 {[%clk 0:00:04]} 53. Re6 {[%clk 0:00:12]}  Rh1+ {[%clk 0:00:04]} 54. Kg3 {[%clk 0:00:12]}  e1=Q+ {[%clk 0:00:05]} 55. Rxe1 {[%clk 0:00:12]}  Rdxe1 {[%clk 0:00:06]} 56. Kg4 {[%clk 0:00:12]}  Reg1 {[%clk 0:00:06]} 57. g3 {[%clk 0:00:13]}  Rh2 {[%clk 0:00:06]} 58. Kf3 {[%clk 0:00:13]}  Rhg2 {[%clk 0:00:06]} 59. Kg4 {[%clk 0:00:14]}  Rxg3+ {[%clk 0:00:06]} 60. Kh5 {[%clk 0:00:14]}  Rg8 {[%clk 0:00:06]} 61. Kh6 {[%clk 0:00:15]}  Rh8# {[%clk 0:00:07]} 0-1


[Site "https://www.chess.com"]

[Event "Titled Tuesday Blitz November 01 Early 2022"]
[White "Postnikov, Daniil"]
[Black "Aung Thant Zin"]
[WhiteFideId "4166329"]
[BlackFideId "13000063"]
[WhiteElo "2261"]
[BlackElo "2278"]
[Result "1-0"]
[Round "08"]
[TimeControl "180+1"]
[Date "2022.11.02"]
[WhiteClock "0:01:56"]
[BlackClock "0:00:22"]

1. d4 {[%clk 0:03:00]}  Nf6 {[%clk 0:02:47]} 2. c4 {[%clk 0:03:01]}  e6 {[%clk 0:02:47]} 3. Nf3 {[%clk 0:03:00]}  b6 {[%clk 0:02:45]} 4. g3 {[%clk 0:03:00]}  Ba6 {[%clk 0:02:45]} 5. b3 {[%clk 0:03:00]}  Bb4+ {[%clk 0:02:43]} 6. Bd2 {[%clk 0:03:01]}  Be7 {[%clk 0:02:41]} 7. Bg2 {[%clk 0:03:01]}  c6 {[%clk 0:02:39]} 8. O-O {[%clk 0:02:59]}  d5 {[%clk 0:02:38]} 9. Ne5 {[%clk 0:02:56]}  Nfd7 {[%clk 0:02:36]} 10. Nf3 {[%clk 0:02:46]}  dxc4 {[%clk 0:02:32]} 11. Re1 {[%clk 0:02:45]}  cxb3 {[%clk 0:02:30]} 12. axb3 {[%clk 0:02:43]}  Bb7 {[%clk 0:02:30]} 13. e4 {[%clk 0:02:38]}  O-O {[%clk 0:02:29]} 14. Nc3 {[%clk 0:02:36]}  Nf6 {[%clk 0:02:25]} 15. h4 {[%clk 0:02:32]}  c5 {[%clk 0:02:15]} 16. d5 {[%clk 0:02:25]}  exd5 {[%clk 0:02:12]} 17. e5 {[%clk 0:02:25]}  Ne4 {[%clk 0:02:11]} 18. Nxe4 {[%clk 0:02:22]}  dxe4 {[%clk 0:02:10]} 19. Ng5 {[%clk 0:02:22]}  Bxg5 {[%clk 0:01:27]} 20. hxg5 {[%clk 0:02:23]}  Qc7 {[%clk 0:01:24]} 21. Bc3 {[%clk 0:02:12]}  Nc6 {[%clk 0:01:22]} 22. Rxe4 {[%clk 0:02:07]}  Rfd8 {[%clk 0:01:20]} 23. Qh5 {[%clk 0:02:01]}  Qd7 {[%clk 0:00:53]} 24. Rh4 {[%clk 0:01:58]}  h6 {[%clk 0:00:44]} 25. gxh6 {[%clk 0:01:55]}  g6 {[%clk 0:00:43]} 26. h7+ {[%clk 0:01:55]}  Kg7 {[%clk 0:00:22]} 27. e6+ {[%clk 0:01:56]} 1-0


[Site "https://www.chess.com"]

[Event "Titled Tuesday Blitz November 01 Early 2022"]
[White "Predke, Alexandr"]
[Black "Fernandez De La Vara, Arnaldo"]
[WhiteFideId "24107581"]
[BlackFideId "3518388"]
[WhiteElo "2614"]
[BlackElo "2387"]
[Result "1-0"]
[Round "08"]
[TimeControl "180+1"]
[Date "2022.11.01"]
[WhiteClock "0:00:04"]
[BlackClock "0:00:05"]

1. Nf3 {[%clk 0:03:00]}  Nf6 {[%clk 0:02:58]} 2. c4 {[%clk 0:02:59]}  c5 {[%clk 0:02:58]} 3. Nc3 {[%clk 0:02:58]}  Nc6 {[%clk 0:02:59]} 4. d4 {[%clk 0:02:58]}  cxd4 {[%clk 0:03:00]} 5. Nxd4 {[%clk 0:02:58]}  g6 {[%clk 0:03:00]} 6. e4 {[%clk 0:02:58]}  d6 {[%clk 0:02:59]} 7. Be2 {[%clk 0:02:57]}  Bg7 {[%clk 0:02:59]} 8. Be3 {[%clk 0:02:55]}  O-O {[%clk 0:02:59]} 9. f3 {[%clk 0:02:51]}  Bd7 {[%clk 0:02:59]} 10. Qd2 {[%clk 0:02:51]}  Qa5 {[%clk 0:02:52]} 11. O-O {[%clk 0:02:40]}  Rfc8 {[%clk 0:02:51]} 12. b3 {[%clk 0:02:32]}  Nxd4 {[%clk 0:02:19]} 13. Bxd4 {[%clk 0:02:33]}  b5 {[%clk 0:02:20]} 14. Rfd1 {[%clk 0:02:05]}  bxc4 {[%clk 0:02:13]} 15. Bxc4 {[%clk 0:02:06]}  Bc6 {[%clk 0:02:07]} 16. Nd5 {[%clk 0:01:55]}  Qxd2 {[%clk 0:02:05]} 17. Rxd2 {[%clk 0:01:56]}  Bxd5 {[%clk 0:01:55]} 18. exd5 {[%clk 0:01:57]}  Nd7 {[%clk 0:01:15]} 19. Re1 {[%clk 0:01:49]}  Bxd4+ {[%clk 0:01:02]} 20. Rxd4 {[%clk 0:01:50]}  Kf8 {[%clk 0:01:01]} 21. Bb5 {[%clk 0:01:43]}  Nb6 {[%clk 0:00:53]} 22. Bc6 {[%clk 0:01:35]}  Rab8 {[%clk 0:00:53]} 23. Rh4 {[%clk 0:01:12]}  h5 {[%clk 0:00:40]} 24. g4 {[%clk 0:01:12]}  hxg4 {[%clk 0:00:29]} 25. fxg4 {[%clk 0:01:13]}  e6 {[%clk 0:00:24]} 26. dxe6 {[%clk 0:01:11]}  fxe6 {[%clk 0:00:18]} 27. Bg2 {[%clk 0:00:36]}  Kg7 {[%clk 0:00:18]} 28. g5 {[%clk 0:00:18]}  e5 {[%clk 0:00:12]} 29. Rh6 {[%clk 0:00:11]}  Rh8 {[%clk 0:00:11]} 30. Rxh8 {[%clk 0:00:11]}  Rxh8 {[%clk 0:00:12]} 31. Rc1 {[%clk 0:00:11]}  Rc8 {[%clk 0:00:08]} 32. Rxc8 {[%clk 0:00:10]}  Nxc8 {[%clk 0:00:09]} 33. a4 {[%clk 0:00:07]}  a5 {[%clk 0:00:07]} 34. Kf2 {[%clk 0:00:03]}  Nb6 {[%clk 0:00:07]} 35. b4 {[%clk 0:00:03]}  axb4 {[%clk 0:00:06]} 36. a5 {[%clk 0:00:04]}  Nc4 {[%clk 0:00:04]} 37. a6 {[%clk 0:00:05]}  b3 {[%clk 0:00:04]} 38. a7 {[%clk 0:00:04]}  Nb6 {[%clk 0:00:04]} 39. Be4 {[%clk 0:00:02]}  d5 {[%clk 0:00:04]} 40. Bxd5 {[%clk 0:00:02]}  b2 {[%clk 0:00:02]} 41. Be4 {[%clk 0:00:03]}  Kf7 {[%clk 0:00:02]} 42. Ke2 {[%clk 0:00:02]}  Kg7 {[%clk 0:00:03]} 43. Kd2 {[%clk 0:00:02]}  Kf7 {[%clk 0:00:03]} 44. Kc2 {[%clk 0:00:02]}  Ke7 {[%clk 0:00:04]} 45. Kxb2 {[%clk 0:00:03]}  Kd7 {[%clk 0:00:04]} 46. a8=Q {[%clk 0:00:03]}  Nxa8 {[%clk 0:00:04]} 47. Bxa8 {[%clk 0:00:03]}  Kd6 {[%clk 0:00:05]} 48. Be4 {[%clk 0:00:04]} 1-0


[Site "https://www.chess.com"]

[Event "Titled Tuesday Blitz November 01 Early 2022"]
[White "Rios Escobar, Adan"]
[Black "Brueckner, Thomas"]
[WhiteFideId "3403645"]
[BlackFideId "4600452"]
[WhiteElo "2352"]
[BlackElo "2332"]
[Result "0-1"]
[Round "08"]
[TimeControl "180+1"]
[Date "2022.11.02"]
[WhiteClock "0:00:03"]
[BlackClock "0:00:07"]

1. d4 {[%clk 0:03:00]}  Nf6 {[%clk 0:02:59]} 2. g3 {[%clk 0:03:00]}  g6 {[%clk 0:02:53]} 3. Bg2 {[%clk 0:03:00]}  d5 {[%clk 0:02:49]} 4. c4 {[%clk 0:02:58]}  Bg7 {[%clk 0:02:48]} 5. Nf3 {[%clk 0:02:55]}  O-O {[%clk 0:02:46]} 6. cxd5 {[%clk 0:02:54]}  Nxd5 {[%clk 0:02:45]} 7. O-O {[%clk 0:02:52]}  Nb6 {[%clk 0:02:45]} 8. e4 {[%clk 0:02:51]}  Bg4 {[%clk 0:02:39]} 9. d5 {[%clk 0:02:27]}  c6 {[%clk 0:02:36]} 10. Nc3 {[%clk 0:02:23]}  cxd5 {[%clk 0:02:25]} 11. exd5 {[%clk 0:02:21]}  N8d7 {[%clk 0:02:23]} 12. h3 {[%clk 0:02:18]}  Bxf3 {[%clk 0:02:22]} 13. Bxf3 {[%clk 0:02:19]}  Ne5 {[%clk 0:02:21]} 14. Bg2 {[%clk 0:02:18]}  Rc8 {[%clk 0:02:20]} 15. Re1 {[%clk 0:02:16]}  Nec4 {[%clk 0:02:09]} 16. Qe2 {[%clk 0:02:07]}  Re8 {[%clk 0:02:05]} 17. a4 {[%clk 0:02:04]}  Nxb2 {[%clk 0:01:25]} 18. Nb5 {[%clk 0:01:38]}  N2c4 {[%clk 0:01:18]} 19. Bg5 {[%clk 0:01:30]}  a6 {[%clk 0:01:11]} 20. Na3 {[%clk 0:01:13]}  Bxa1 {[%clk 0:00:51]} 21. Rxa1 {[%clk 0:01:12]}  Nxa3 {[%clk 0:00:47]} 22. Rxa3 {[%clk 0:01:13]}  Qd6 {[%clk 0:00:45]} 23. Rd3 {[%clk 0:01:09]}  Nxa4 {[%clk 0:00:39]} 24. Kh2 {[%clk 0:00:59]}  Nc5 {[%clk 0:00:38]} 25. Re3 {[%clk 0:00:55]}  f6 {[%clk 0:00:33]} 26. Bf4 {[%clk 0:00:54]}  Qd7 {[%clk 0:00:32]} 27. h4 {[%clk 0:00:44]}  Rcd8 {[%clk 0:00:32]} 28. Bh6 {[%clk 0:00:41]}  Kf7 {[%clk 0:00:27]} 29. Qa2 {[%clk 0:00:17]}  b6 {[%clk 0:00:27]} 30. d6+ {[%clk 0:00:13]}  e6 {[%clk 0:00:27]} 31. Bf4 {[%clk 0:00:09]}  a5 {[%clk 0:00:26]} 32. Bh3 {[%clk 0:00:06]}  a4 {[%clk 0:00:24]} 33. Qc4 {[%clk 0:00:05]}  Ra8 {[%clk 0:00:22]} 34. Qe2 {[%clk 0:00:04]}  a3 {[%clk 0:00:21]} 35. Qa2 {[%clk 0:00:03]}  Kg7 {[%clk 0:00:15]} 36. Bf1 {[%clk 0:00:02]}  e5 {[%clk 0:00:14]} 37. Bh3 {[%clk 0:00:02]}  Qxd6 {[%clk 0:00:13]} 38. Bxe5 {[%clk 0:00:01]}  Rxe5 {[%clk 0:00:12]} 39. Rxa3 {[%clk 0:00:01]}  Rxa3 {[%clk 0:00:10]} 40. Qxa3 {[%clk 0:00:02]}  Re7 {[%clk 0:00:10]} 41. Qb2 {[%clk 0:00:02]}  Qe5 {[%clk 0:00:09]} 42. Qd2 {[%clk 0:00:01]}  Qe2 {[%clk 0:00:08]} 43. Qa2 {[%clk 0:00:02]}  Qxa2 {[%clk 0:00:08]} 44. Kg2 {[%clk 0:00:02]}  Re2 {[%clk 0:00:07]} 45. Bg4 {[%clk 0:00:01]}  Rxf2+ {[%clk 0:00:08]} 46. Kg1 {[%clk 0:00:02]}  Rh2 {[%clk 0:00:08]} 47. Kf1 {[%clk 0:00:03]}  Qf2# {[%clk 0:00:07]} 0-1


[Site "https://www.chess.com"]

[Event "Titled Tuesday Blitz November 01 Early 2022"]
[White "Rose, Felix"]
[Black "Grave, Jacob Templen"]
[WhiteFideId "5105722"]
[BlackFideId "1542656"]
[WhiteElo "2039"]
[BlackElo "2121"]
[Result "0-1"]
[Round "08"]
[TimeControl "180+1"]
[Date "2022.11.02"]
[WhiteClock "0:01:20"]
[BlackClock "0:01:57"]

1. e4 {[%clk 0:03:00]}  c6 {[%clk 0:02:57]} 2. d4 {[%clk 0:03:00]}  d5 {[%clk 0:02:58]} 3. e5 {[%clk 0:03:00]}  Bf5 {[%clk 0:02:55]} 4. h4 {[%clk 0:03:01]}  h5 {[%clk 0:02:54]} 5. Bd3 {[%clk 0:03:01]}  Bxd3 {[%clk 0:02:53]} 6. Qxd3 {[%clk 0:03:02]}  Qa5+ {[%clk 0:02:51]} 7. Nd2 {[%clk 0:02:57]}  e6 {[%clk 0:02:50]} 8. Nf3 {[%clk 0:02:57]}  Nh6 {[%clk 0:02:46]} 9. O-O {[%clk 0:02:55]}  Nf5 {[%clk 0:02:46]} 10. c4 {[%clk 0:02:50]}  Be7 {[%clk 0:02:45]} 11. g3 {[%clk 0:02:46]}  O-O {[%clk 0:02:45]} 12. Rd1 {[%clk 0:02:26]}  Rd8 {[%clk 0:02:44]} 13. Qc2 {[%clk 0:02:08]}  c5 {[%clk 0:02:38]} 14. cxd5 {[%clk 0:01:50]}  Rxd5 {[%clk 0:02:39]} 15. Nb3 {[%clk 0:01:45]}  Qd8 {[%clk 0:02:16]} 16. Be3 {[%clk 0:01:42]}  cxd4 {[%clk 0:02:02]} 17. Bxd4 {[%clk 0:01:33]}  Nc6 {[%clk 0:02:02]} 18. Bc3 {[%clk 0:01:27]}  Rc8 {[%clk 0:01:58]} 19. Rxd5 {[%clk 0:01:21]}  Qxd5 {[%clk 0:01:57]} 20. Rd1 {[%clk 0:01:20]}  Qxf3 {[%clk 0:01:57]} 0-1


[Site "https://www.chess.com"]